Workbook

Sheet Fleet 1
A1: Blackwater Yacht Racing Association - 2015 Pub Race | Z1: Test
A2: Date: Aug 8, 2015 PPYC to Mariner's Landing (6.57 n/miles) 8 to 10 knots variable RC: Phillip | Y2: new tcf = | Z2: should =
A3: Inverted Start | P3: Time | Q3: Time | R3: Approx | T3: Finish Calculations | Y3: Winner Adj Time | Z3: Winner Adj Time | AC3: # of Boats
G4: Handicap | I4: TCF | K4: Start Delay | M4: Calc(1) | N4: Adj.(2) | P4: Behind | Q4: Behind | R4: H'cap | T4: S for Spin | Y4: /observed | AC4: =MAX(AC6:AC20) -> 0
A5: Skipper | B5: Boat Name | C5: Initials | D5: Guest? | E5: Boat | F5: Sail # | G5: Spin* | H5: Non-Spin* | I5: Spin* | J5: Non-Spin* | K5: Min. | L5: Sec. | M5: Min.dd | N5: Time | O5: Place | P5: Winner | Q5: Boat Ahead | R5: to win | T5: N for non
A6: Maloney | B6: Boogie Board | E6: J/24 | F6: 1742 | G6: 170 | H6: =IFERROR(G6+15,"") -> 185 | I6: =IF(T6 = "s",1000/(900+G6),"") -> 0.9345794393 | J6: =IF(T6 ="n",1000/(900+H6),"") ->  | K6: 14 | L6: 14 | M6: =IF(K6>0,(K6+L6/60)-#REF!," ") ->  | N6: 122:32 | O6: 1 | R6: =IFERROR(ROUND((1000/Y6)-900,0),"") ->  | T6: s | U6: =IFERROR(IF(M6>0,IF(T6="s",M6*I6,0)+IF(T6="n",M6*J6,0)," "),"") ->  | V6: =IFERROR(RANK(N6,$N$6:$N$20,1),"") ->  | Y6: =IFERROR(#REF!/M6,"") ->  | Z6: =IFERROR(M6*Y6,"") ->  | AB6: 1 | AH6: 55 | AI6: 39
A7: Cliborne | B7: Bandit | E7: J/24 | F7: 2792 | G7: 170 | H7: =IFERROR(G7+15,"") -> 185 | I7: =IF(T7 = "s",1000/(900+G7),"") -> 0.9345794393 | J7: =IF(T7 ="n",1000/(900+H7),"") ->  | K7: 14 | L7: 14 | M7: =IF(K7>0,(K7+L7/60)-#REF!," ") ->  | N7: 128:13 | O7: 2 | T7: s | U7: =IFERROR(IF(M7>0,IF(T7="s",M7*I7,0)+IF(T7="n",M7*J7,0)," "),"") ->  | V7: =IFERROR(RANK(N7,$N$6:$N$20,1),"") ->  | Y7: =IFERROR(#REF!/M7,"") ->  | Z7: =IFERROR(M7*Y7,"") ->  | AB7: 2 | AH7: 56 | AI7: 22
A8: Gietl | E8: VX One | F8: 119 | G8: 107 | H8: =IFERROR(G8+15,"") -> 122 | I8: =IF(T8 = "s",1000/(900+G8),"") ->  | J8: =IF(T8 ="n",1000/(900+H8),"") -> 0.9784735812 | K8: 19 | L8: 29 | M8: =IF(K8>0,(K8+L8/60)-#REF!," ") ->  | N8: 147:04 | O8: 3 | T8: n | Y8: =IFERROR(#REF!/M8,"") ->  | AB8: 3 | AH8: 54 | AI8: 9
A9: DeMestro | B9: Little Wing | E9: Beneteau 29 | F9: 485 | G9: 168 | H9: =IFERROR(G9+15,"") -> 183 | I9: =IF(T9 = "s",1000/(900+G9),"") ->  | J9: =IF(T9 ="n",1000/(900+H9),"") -> 0.9233610342 | K9: 12 | L9: 49 | M9: =IF(K9>0,(K9+L9/60)-#REF!," ") ->  | N9: 149:29 | O9: 4 | T9: n | Y9: =IFERROR(#REF!/M9,"") ->  | AB9: 4 | AH9: 62 | AI9: 59
A10: Schraw | B10: Second Wind | E10: Ericson 23 | F10: 470 | G10: 240 | H10: =IFERROR(G10+15,"") -> 255 | I10: =IF(T10 = "s",1000/(900+G10),"") ->  | J10: =IF(T10 ="n",1000/(900+H10),"") -> 0.8658008658 | K10: 4 | L10: 55 | M10: =IF(K10>0,(K10+L10/60)-#REF!," ") ->  | N10: 150:31 | O10: 5 | T10: n | Y10: =IFERROR(#REF!/M10,"") ->  | AB10: 5 | AH10: 59 | AI10: 12
A11: Hull | B11: Fools Game | E11: Pearson 26 | F11: 1183 | G11: 215 | H11: 230 | J11: 0.8849557522 | K11: 7 | L11: 40 | M11: =IF(K11>0,(K11+L11/60)-#REF!," ") ->  | N11: 152:48 | O11: 6 | T11: n | Y11: =IFERROR(#REF!/M11,"") ->  | AB11: 6 | AH11: 56 | AI11: 58
A12: Perdue | B12: Miss Virginia | E12: Hunter 23.5 | F12: 1309 | G12: 241 | H12: =IFERROR(G12+15,"") -> 256 | J12: 0.8650519031 | K12: 4 | L12: 49 | M12: =IF(K12>0,(K12+L12/60)-#REF!," ") ->  | N12: 155:35 | O12: 7 | T12: n | Y12: =IFERROR(#REF!/M12,"") ->  | AB12: 7 | AH12: 64 | AI12: 47
A13: Johnson | B13: Felicite | E13: S-2 27 IB | G13: =188+6 -> 194 | H13: =IFERROR(G13+15,"") -> 209 | J13: 0.9017132552 | K13: 9 | L13: 58 | M13: =IF(K13>0,(K13+L13/60)-#REF!," ") ->  | N13: 164:55 | O13: 8 | T13: n | Y13: =IFERROR(#REF!/M13,"") ->  | AB13: 8
